Cogmind - Beta 14 @@@ ROGUE MODE // 2024.10.01 @ 17:38:19 Player: Dazz Result: Destroyed by Y1-N01(R) with Subdweller Shrapnel Launcher Performance ------------- Evolutions (0) 0 Regions Visited (3) 600 Robots Destroyed (8) 40 Value Destroyed (269) 269 Prototype IDs (0) 0 Alien Tech Used (0) 0 Bonus (60) 60 TOTAL SCORE: 969 Bonus ------- Follower Combat Kills 60 Cogmind --------- Core Integrity 0/250 Matter 216/300 Energy 265/265 System Corruption 0% Temperature Cool (0) Movement Rolling (95) Ox1 Location -10/Subcaves Parts ------- > --- POWER (1) -------- Improved Ion Engine > --- PROPULSION (2) --- Wheel > --- UTILITY (2) ------ Small Storage Unit Terrain Scanner > --- WEAPON (2) ------- Battle Rifle > --- INVENTORY (8) ---- Signal Interpreter Terrain Scanner Terrain Scan Processor Light Armor Plating Battle Rifle Rocket Launcher Mining Claw Peak State ------------ > --- POWER ------------ Improved Ion Engine > --- PROPULSION ------- Wheel Wheel > --- UTILITY ---------- Small Storage Unit Terrain Scanner > --- WEAPON ----------- Assault Rifle Heavy Assault Rifle > --- INVENTORY -------- Signal Interpreter Terrain Scanner Terrain Scan Processor Light Armor Plating Light Assault Rifle Grenade Launcher Rocket Launcher Mining Claw [Rating: 10] Favorites ----------- Power Improved Ion Engine Engine Improved Ion Engine Propulsion Wheel Treads Light Treads Wheel Wheel Utility Small Storage Unit Device Terrain Scanner Storage Small Storage Unit Weapon Assault Rifle Ballistic Gun Assault Rifle Launcher Rocket Launcher Slashing Weapon Mining Claw Build | -11 -10 -10 -10 ------- Run | Yrd Mat Min Sub Slots Evolved . | . . . . Power . | . . . . Propulsion . | . . . . Utility . | . . . . Weapon . | . . . . Parts Attached 23 | 6 . 9 8 Power 2 | 1 . 1 . Engine 2 | 1 . 1 . Core . | . . . . Reactor . | . . . . Propulsion 5 | 2 . 3 . Treads 1 | . . 1 . Leg . | . . . . Wheel 4 | 2 . 2 . Hover . | . . . . Flight . | . . . . Utility 2 | 1 . 1 . Device 1 | . . 1 . Storage 1 | 1 . . . Processor . | . . . . Hackware . | . . . . Protection . | . . . . Artifact . | . . . . Weapon 14 | 2 . 4 8 Energy Gun . | . . . . Energy Cannon . | . . . . Ballistic Gun 6 | 2 . 1 3 Ballistic Cannon . | . . . . Launcher 3 | . . 1 2 Special Weapon . | . . . . Impact Weapon . | . . . . Slashing Weapon 5 | . . 2 3 Piercing Weapon . | . . . . Special Melee Weapon . | . . . . Unidentified Prototypes . | . . . . Parts Lost 4 | . . 2 2 Power . | . . . . Propulsion 3 | . . 2 1 Utility . | . . . . Weapon 1 | . . . 1 Highest Loss Streak 2 | . . 2 1 To Critical Strikes . | . . . . Average Slot Usage (%) 89 | . 85 93 86 Engine 14 | . 14 14 14 Treads 1 | . . 3 . Wheel 19 | . 28 20 16 Device 11 | . . 12 14 Storage 14 | . 14 14 14 Ballistic Gun 17 | . 28 22 8 Launcher 5 | . . 1 11 Slashing Weapon 5 | . . 3 7 Peak Build Rating 10 | 6 6 10 10 Average Rating 7 | 2 6 7 8 On Entrance 5 | . 6 6 10 Naked Turns . | . . . . Heaviest Build 20 | 13 13 20 20 Greatest Support 26 | 26 26 26 20 Greatest Overweight (x) 5 | . . 5 1 Average Overweight (x) . | . . . . Largest Inventory Capacity 8 | 8 8 8 8 Average Capacity 7 | 6 8 8 8 Most Carried 8 | 5 3 8 8 Average Carried 5 | 1 2 5 6 Final Capacity 8 | 8 8 8 8 Final Carried 7 | . 3 6 7 Class Distribution -------------------- 79% | Mutant 20% | Scavenger-Mutant Dominant Class ---------------- Mutant | -10/Materials Mutant | -10/Mines Mutant | -10/Subcaves Resources | -11 -10 -10 -10 ----------- Run | Yrd Mat Min Sub Matter Collected 593 | 241 . 210 142 Remotely . | . . . . Salvage Created 300 | . 91 81 128 Parts 21 | . 5 5 11 Haulers Intercepted . | . . . . Recyclers Shooed . | . . . . Parts Field Recycled . | . . . . Retrieved Matter . | . . . . Parts Self-Destructed 2 | . . . 2 Prevented . | . . . . Kills | -11 -10 -10 -10 ------- Run | Yrd Mat Min Sub Combat Hostiles Destroyed 9 | . 2 3 4 Guns 6 | . 2 2 2 AOE 3 | . . 1 2 Classes Destroyed 4 | . 1 2 1 Tunneler 1 | . . 1 . Grunt 3 | . 2 1 . Subdweller 4 | . . . 4 Assembled 2 | . . 2 . Best Kill Streak 2 | . 2 2 2 Combat Bots Only 2 | . 2 1 2 Max Kills in Single Turn 2 | . 1 2 1 Gunslinging . | . . . . Exploded 1 | . . 1 1 Melee . | . . . . Uniques/NPCs Destroyed . | . . . . Combat | -11 -10 -10 -10 -------- Run | Yrd Mat Min Sub Hostile Shots Fired 62 | . 26 17 19 Missed 14 | . 7 2 5 Damage Taken 948 | . 183 221 544 Core 262 | . 21 15 226 Absorbed by Shields . | . . . . Core Remaining (%) 100 | 100 . . . Volleys Fired 42 | . 10 14 18 Largest 2 | . 2 2 2 Hottest 50 | . 40 43 50 Shots Fired 69 | . 20 27 22 Gun 56 | . 20 26 10 Cannon . | . . . . Launcher 13 | . . 1 12 Special . | . . . . Kinetic 56 | . 20 26 10 Thermal . | . . . . Explosive 13 | . . 1 12 Electromagnetic . | . . . . Robot Hit Streak 7 | . 5 7 6 Robot Miss Streak 2 | . 2 1 1 Penetration Max . | . . . . Secondary Targets 1 | . 1 . . Max Gunslinging Chain 1 | . 1 . . Shots Hit Robots 45 | . 15 20 10 Core Hits 20 | . 6 6 8 Critical Kills . | . . . . Critical Parts Destroyed . | . . . . Critical Strikes . | . . . . Melee Attacks 48 | . . 23 25 Impact . | . . . . Slashing 48 | . . 23 25 Piercing . | . . . . Sneak Attacks . | . . . . Combat Hostiles . | . . . . Follow-up Attacks . | . . . . Damage Inflicted 942 | . 142 310 490 Guns 443 | . 142 211 90 Cannons . | . . . . Explosions 499 | . . 99 400 Melee . | . . . . Ramming . | . . . . Kinetic 443 | . 142 211 90 Thermal . | . . . . Explosive 499 | . . 99 400 Electromagnetic . | . . . . Impact . | . . . . Slashing . | . . . . Piercing . | . . . . Highest Corruption . | . . . . Average Corruption . | . . . . Corruption Purged . | . . . . Corruption Blocked . | . . . . Overload Shots . | . . . . Overflow Damage . | . . . . Projectiles . | . . . . Explosions . | . . . . Melee . | . . . . Knockbacks . | . . . . Impact . | . . . . Kinetic . | . . . . Secondary . | . . . . Self-Inflicted Damage 83 | . . . 83 Shots 4 | . . . 4 Rammed . | . . . . Targets Rammed . | . . . . Kicked . | . . . . Crushed . | . . . . Highest Temperature 18 | . 18 18 . Average Temperature 7 | . 10 6 . Received Heat Transfer 174 | . 84 36 54 Siege Activations . | . . . . Robots Corrupted . | . . . . Combat Hostiles . | . . . . Parts Fried . | . . . . Impact Corruptions . | . . . . Robots Melted . | . . . . Combat Hostiles . | . . . . Parts Melted 1 | . . . 1 Heat Transferred . | . . . . Parts Sabotaged . | . . . . Parts Stolen . | . . . . Parts Stripped . | . . . . Power Chain Reactions . | . . . . Alert | -11 -10 -10 -10 ------- Run | Yrd Mat Min Sub Peak Influence 127 | . 127 64 . Initial 49 | . . 49 . Average 31 | . 37 31 . Maximum Alert Level . | . . . . Low Security (%) 100 | 100 100 100 . Level 1 . | . . . . Level 2 . | . . . . Level 3 . | . . . . Level 4 . | . . . . Level 5 . | . . . . High Security . | . . . . Max Security . | . . . . Squads Dispatched 1 | . 1 . . Investigation . | . . . . Extermination . | . . . . Reinforcement 1 | . 1 . . Assault . | . . . . Garrison . | . . . . Intercept . | . . . . Searches Triggered . | . . . . Construction Impeded . | . . . . Haulers Reinforced . | . . . . Active Scanning Responses . | . . . . Cargo Convoy Interrupts . | . . . . Stealth | -11 -10 -10 -10 --------- Run | Yrd Mat Min Sub Distress Signals . | . . . . Communications Jammed . | . . . . Distress Signals . | . . . . Times Spotted 22 | . 11 3 8 Peak Tracking Total 5 | . 5 1 2 Tactical Retreats 1 | . 1 . . Traps | -11 -10 -10 -10 ------- Run | Yrd Mat Min Sub Traps Triggered . | . . . . Indirectly . | . . . . Trap Hack Attempts . | . . . . Triggered . | . . . . Disarmed . | . . . . Reprogrammed . | . . . . Reused . | . . . . Traps Extracted . | . . . . Installed . | . . . . Triggered 1 | . . . 1 Machines | -11 -10 -10 -10 ---------- Run | Yrd Mat Min Sub Machines Disabled . | . . . . Max in Single Turn . | . . . . Machines Repaired . | . . . . Machines Dismantled . | . . . . Machines Sabotaged . | . . . . Overloaded Fab Kills . | . . . . Hacking | -11 -10 -10 -10 --------- Run | Yrd Mat Min Sub Machines Accessed 3 | . 2 . 1 Terminals 2 | . 2 . . Fabricators . | . . . . Repair Stations . | . . . . Recycling Units . | . . . . Scanalyzers . | . . . . Garrison Access . | . . . . Total Hacks 13 | . 9 . 4 Successful 6 | . 2 . 4 Failed 7 | . 7 . . Catastrophic . | . . . . Database Lockouts . | . . . . Manual . | . . . . Terminals 9 | . 9 . . Fabricators . | . . . . Repair Stations . | . . . . Recycling Units . | . . . . Scanalyzers . | . . . . Garrison Access . | . . . . Terminal Hacks 6 | . 2 . 4 Record 4 | . . . 4 Robot Analysis 1 | . 1 . . Branch Access Points 1 | . 1 . . Fabricator Hacks . | . . . . Repair Station Hacks . | . . . . Recycling Unit Hacks . | . . . . Scanalyzer . | . . . . Garrison Access Hacks . | . . . . Unauthorized Hacks . | . . . . Terminals . | . . . . Fabricators . | . . . . Repair Stations . | . . . . Recycling Units . | . . . . Scanalyzers . | . . . . Garrison Access . | . . . . Data Cores Recovered . | . . . . Used . | . . . . Hacking Detections 2 | . 2 . . Full Trace Events 1 | . 1 . . Feedback Events . | . . . . Feedback Blocked . | . . . . Robot Schematics Acquired . | . . . . Robots Built . | . . . . Authchips . | . . . . Time . | . . . . Total Robot Build Rating . | . . . . Part Schematics Acquired . | . . . . Parts Built . | . . . . Authchips . | . . . . Time . | . . . . Total Part Build Rating . | . . . . Parts Repaired . | . . . . Time . | . . . . Parts Recycled . | . . . . Recycled Matter . | . . . . Retrieved Matter . | . . . . Retrieved Components . | . . . . Parts Scanalyzed . | . . . . Part Schematics Acquired . | . . . . Parts Damaged . | . . . . Bothacking | -11 -10 -10 -10 ------------ Run | Yrd Mat Min Sub Used RIF Installer . | . . . . Robots Hacked . | . . . . Non-combat . | . . . . Combat . | . . . . Robot Hacks Applied . | . . . . Relay Couplers Released . | . . . . Fabnet Peak Effective % . | . . . . Robots Rewired . | . . . . Allies Hacked . | . . . . Hacks Repelled . | . . . . Allies | -11 -10 -10 -10 -------- Run | Yrd Mat Min Sub Total Allies 3 | . . 3 . Largest Group 3 | . . 3 3 Highest-Rated Group 40 | . . 40 40 Highest-Rated Ally 16 | . . 16 16 Total Orders . | . . . . Ally Attacks 13 | . . . 13 Total Damage 164 | . . . 164 Kills 2 | . . . 2 Allies Corrupted . | . . . . Allies Melted . | . . . . Intel | -11 -10 -10 -10 ------- Run | Yrd Mat Min Sub Robot Analysis Total 1 | . 1 . . Derelict Logs Recovered 2 | . . 1 1 Drone Launches . | . . . . Drone Recoveries . | . . . . Exploration | -11 -10 -10 -10 ------------- Run | Yrd Mat Min Sub Turns Passed 1591 | 37 190 676 688 Spaces Moved 1330 | 37 168 548 577 Core 25 | 20 . 5 . Treads 64 | . . 64 . Legs . | . . . . Wheels 1241 | 17 168 479 577 Hover . | . . . . Flight . | . . . . Fastest Speed 50 | 50 90 80 80 Average Speed 93 | 68 90 96 92 Slowest Speed 300 | 90 90 300 95 Overloaded Moves . | . . . . Propulsion Burnouts . | . . . . Robots Hopped . | . . . . Cave-ins Triggered . | . . . . Exploration Rate (%) 38 | 2 40 74 39 Regions Visited 3 Branch Regions 2 Pre-discovered Areas . | . . . . Known Exits Taken 1 | . 1 . . Unknown Exits Taken 2 | 1 . 1 . Scrap Searched 1 | . . 1 . Spaces Dug 53 | . . 19 34 Terrain Destroyed 109 | . . 19 90 Melee 6 | . . 6 . Projectile . | . . . . AOE 103 | . . 13 90 Terrain Rammed . | . . . . Walls Destroyed . | . . . . Machines Disabled . | . . . . Actions | -11 -10 -10 -10 --------- Run | Yrd Mat Min Sub Total 1529 | 48 188 629 664 Wait 44 | . 8 17 19 Move 1327 | 36 167 547 577 Hop . | . . . . Pick Up 25 | 6 3 10 6 Fast Attach . | . . . . Attach 23 | 6 . 9 8 Detach 11 | . . 5 6 Swap . | . . . . Drop 9 | . . 4 5 Fire 42 | . 10 14 18 Melee 48 | . . 23 25 Ram . | . . . . Kick . | . . . . Crush . | . . . . Escape Stasis . | . . . . Rewire . | . . . . Trap . | . . . . Miscellaneous . | . . . . Route ------- -11/Scrapyard -10/Materials (discovered 2 exits: [*Mat] / *Min) -10/Mines (discovered 2 exits: [*Mat] / *Sub) -10/Subcaves (discovered 1 exit: Rec) History --------- Turn | Location | Event 13 | -11/Scrapyard | Discovered new exit (range 16) 38 | -11/Scrapyard | Entered Materials 141 | -10/Materials | Identified exit to Mines 186 | -10/Materials | Discovered new exit (range 15) 228 | -10/Materials | Entered Mines 311 | -10/Mines | Build established: Mutant 360 | -10/Mines | Received a Rocket Launcher from a helpful Derelict 409 | -10/Mines | Discovered new exit (range 10) 495 | -10/Mines | Joined a pair of Derelicts in attacking an 0b10 outpost 574 | -10/Mines | Excavation squad dispatched 574 | -10/Mines | A large section of the Mines collapsed 871 | -10/Mines | Assisted by bots powering up and referring to "LRC-V3" 892 | -10/Mines | Discovered new exit (range 6) 904 | -10/Mines | Entered Subcaves 904 | -10/Subcaves | Accompanied by 3 allies 908 | -10/Subcaves | Identified exit to Recycling 973 | -10/Subcaves | Build established: Scavenger-Mutant 992 | -10/Subcaves | Ambushed by Subdwellers from Twisted Machinery 1101 | -10/Subcaves | Visited Clippyterm 1104 | -10/Subcaves | Learned Factory garrison access intel 1119 | -10/Subcaves | Shifting Twisted Machinery released Battle Rifle 1262 | -10/Subcaves | Shifting Twisted Machinery released Sub. Laser 1301 | -10/Subcaves | Build established: Mutant 1373 | -10/Subcaves | Shifting Twisted Machinery released Flamer 1384 | -10/Subcaves | Ambushed by Subdwellers from Twisted Machinery 1576 | -10/Subcaves | Ambushed by Subdweller buried in earth 1579 | -10/Subcaves | Ambushed by Subdweller buried in earth 1580 | -10/Subcaves | Core integrity fell below 50% 1582 | -10/Subcaves | Core integrity fell below 20% 1592 | -10/Subcaves | Destroyed by Y1-N01(R) with Subdweller Shrapnel Launcher Last Messages --------------- 01297_ I0-098(O) collects matter. 01301_ JZ-956(u) builds Twisted Machinery. 01370_ Acquired Battle Rifle. Flamer falls loose from the Twisted Machinery. 01384_ MV-VV6(R) emerges from the Twisted Machinery. 01386_ Dropped Rocket Launcher. 01388_ Dropped Sub. Machine Gun. 01393_ Q0-Y53(R) destroyed. 01396_ Sub. Power Source melted. 01396_ MV-VV6(R) destroyed. 01399_ Acquired 59 matter. 01469_ The unstable cave ceiling collapses. 01502_ Subatomizers dissect the Rocket Launcher. 01508_ Acquired Rocket Launcher. 01534_ Acquired 10 matter. 01538_ Subatomizers dissect the Imp. Heat Sink. 01577_ Y1-N01(R): "GOODGOOD!" 01577_ Grenade Launcher destroyed. 01580_ V8-YL5(R): "GOODGOOD!" Map ----- +----------------------------------------------------+ | ?????????????????????????????????????????????????? | | ??????????????????#??????????????????????????????? | | ?????????#????#???#??????????????????????????????? | | ?????????????????????????????????????????????????? | | ???????????#?????????????????????????????????????? | | ???????????###???????#???????????????????????????? | | ???????#???# #???#???#??? #????????????????????? | | ?????????### #???????????""""????????????????????? | | ?????????# ##?########?"""?????????????????????? | | ?????????## #### ##% ? ????????????????????? | | ???#??###?# ### #???????????????????????? | | ?????## ### #?# #? ?????????????????????? | | ?????# # ### R #???????????????????????? | | ?????## ## ## #???????????????????????? | | ??????# ## # #####???????????????????? | | ??????# # ;;#???????????????????? | | ??????# ## ###??????????????????? | | ??????# ##" #???????????????????? | | ??????# " ##??????????????????? | | ??????# ! ##;; ##??#??????????????? | | ??????# ## ; #?????????????????? | | ????#?# ### ; #?????????????????? | | ??????## ####; ; #?????????????????? | | ???????## ##### ; #?????????????????? | | ????????# #### ! ; #?????????????????? | | ???##???## ##?## @ ####?????????????????? | | ?????#???# #??## #???????????????????? | | ????#?##?# #??## ##???????????????????? | | ???#?## ## #?## #????????????????????? | | ?????# ##?# #######???????#???????????? | | ?????#""""" #??# """ #???????#?????????????????? | | ?????##"""" ####### ##????????#???????????????? | | ??????#"""""### # O# #####?##?????????????????? | | ??????##" # # ##??????#?????????????? | | ??????# " " ### ##??????????#????????? | | ??????# "# #?# #???????#???????????? | | ???#??# "[" ### ### #???????????????????? | | ???#??###" """ ## " #### ! ####?????##?????????? | | ?????#??##" " "## "##??## # #?????????????????? | | ?????????##""""### " #?#### [ #??????#??????????? | | ??????????##" ### #### # #?#???????????????? | | ????????##?## ### |""* ! #?????????????????? | | ??????????### ## # "## ##?????????????????? | | ?????#????## ####### #?????????????????? | | ????#?????# ######?# &&#?#???#???????????? | | ??????###?#" ####"### !!=#?????????????????? | | ?????## ### " ### ""####&&#??????????#??????? | | ?????# " = "### "" "# # "##????????????????? | | ?????# ##?## "" ""[["""##????????#??????? | | ?????# "####?##### &""""#????????????????? | +----------------------------------------------------+ Best States ------------- Heat Dissipation 25 Energy Generation 12 Energy Capacity 265 Matter Stores 300 Matter Capacity 300 Sight Range 16 Terrain Scan Range 14 Terrain Scan Density 10 Evasion (%) 44 Recoil Reduction 1 Item Schematics ----------------- None Robot Schematics ------------------ None Fabricated ------------ Nothing Alien Tech Used ----------------- None Achievements -------------- Dramatic Entrance Challenges ------------ None Game ------ Seed IonAblativeReactor Manual? 0 Play Time 00:25:03 Cumulative 8.7 hours Start 2024.10.01 @ 17:12:36 End 2024.10.01 @ 17:38:19 Sessions 4 Manual Loads 0 Difficulty Rogue Special Mode None Game No. 24 Rogue 24 Adventurer 0 Explorer 0 Win Type - Total 0 Types 0/0/0/0/0/0/0/0/0 Lore% 8 Gallery% 8 Achievement% 10 Wizard Run 0 Options --------- Layout 1 ASCII 0 Keyboard 1 Movement Numpad Keybinds 0 Fullscreen 2 Font 32/SmallcapsGlow Map View 50x35 Zoom Use 0% Tactical HUD 1 Map Filters NONE Filters NONE Steam 1 RUN: ef5eb712-ef34-4ca3-8d6b-2554209d1e15